bitfinex-derivatives/quotes_ETHF0:USTF0_20250403
["timestamp","ask_amount","ask_price","bid_price","bid_amount"]
[1743681397521,4.32142,1796.3,1796.2,1.4526]
[1743681397715,1.11366,1796.2,1796.1,1.56142605]
[1743681397913,3.36316,1796.2,1796.1,1.56142605]
[1743681398921,1.11366,1796.2,1796.1,2.67514605]
[1743681399218,3.21613001,1797.1,1796.1,6.19462605]
[1743681399418,2.1256,1796.9,1796.5,3.2078]
[1743681399614,2.51654,1796.9,1796.7,3.2078]
[1743681399815,2.51654,1796.9,1796.8,42.2224]
[1743681400016,2.78326,1796.8,1796.4,3.726]
[1743681400210,1.11347,1796.5,1796.4,3.726]
[1743681400417,1.11353,1796.4,1796.3,7.73595]
[1743681400612,1.11353,1796.4,1796.3,2.8964]
[1743681402624,1.11366,1796.2,1796.1,1.56142605]
[1743681402922,4.32146,1796.2,1796.1,1.56142605]
[1743681403121,4.32146,1796.2,1796.1,1.51138857]
[1743681404223,6.50884,1796.4,1796.1,1.51138857]
[1743681404426,1.11366,1796.2,1796.1,4.85566857]
[1743681405021,1.11359,1796.4,1796.3,1.11358]
[1743681406726,1.1136,1796.3,1796.2,3.36291]
[1743681406927,1.1136,1796.3,1796.2,3.36296]
[1743681407125,1.1136,1796.3,1796.2,2.2493]
[1743681407526,1.1136,1796.3,1796.2,3.36296]
[1743681407724,1.1136,1796.3,1796.2,2.2493]
[1743681407926,1.11356,1796.4,1796.2,3.36294]
[1743681408126,1.11356,1796.4,1796.3,1.5081]
[1743681411629,1.1136,1796.3,1796.2,0.7196]
[1743681411829,1.11366,1796.2,1796.1,6.92078857]
[1743681412028,1.11366,1796.2,1796.1,5.42008857]
[1743681412333,1.11366,1796.2,1796.1,1.51138857]
[1743681412750,1.81966,1796.2,1796.1,1.51138857]
[1743681413929,4.31966,1796.2,1796.1,1.51138857]
[1743681414628,5.01536,1796.2,1796.1,1.51138857]
[1743681415526,5.01536,1796.2,1796.1,0.38758857]
[1743681415725,1.11372,1796.1,1796.0,8.15e-06]
[1743681415926,4.32152,1796.1,1796.0,8.15e-06]
[1743681416126,6.82152,1796.1,1796.0,8.15e-06]
[1743681417129,6.91933643,1796.1,1796.0,8.15e-06]
[1743681417630,8.25972,1796.1,1796.0,8.15e-06]
[1743681418432,1.11428,1795.2,1795.1,0.7251]
[1743681419033,1.11428,1795.2,1795.1,41.5251]
[1743681419233,1.11428,1795.2,1795.1,40.8]
[1743681419435,2.55248,1795.2,1795.1,40.8]
[1743681420635,2.55248,1795.2,1795.0,0.00833958]
[1743681420636,1.11434,1795.1,1795.0,0.00833958]
[1743681420835,5.82224,1795.1,1795.0,9.58e-06]
[1743681421036,8.32224,1795.1,1795.0,9.58e-06]
[1743681424647,8.32224,1795.1,1794.3,3.2078]
[1743681424648,1.11477,1794.4,1794.3,3.2078]
[1743681424845,1.11477,1794.4,1794.3,4.6818]
[1743681425639,1.11477,1794.4,1794.3,45.4818]
[1743681426236,1.11477,1794.4,1794.3,46.59664]
[1743681426744,1.11474,1794.5,1794.4,1.11477]
[1743681427041,1.11469,1794.6,1794.5,1.11471]
[1743681427249,1.11471,1794.5,1794.4,2.53143]
[1743681427843,8.73924,1794.8,1794.5,1.11471]
[1743681427844,1.1147,1794.6,1794.5,1.11471]
[1743681428469,1.11471,1794.5,1794.4,2.53144]
[1743681428750,1.11464,1794.7,1794.6,1.11463]
[1743681429446,1.11464,1794.7,1794.6,42.9759]
[1743681430744,1.11464,1794.7,1794.6,44.09055]
[1743681430940,1.11464,1794.7,1794.6,43.67]
[1743681431652,1.11464,1794.7,1794.6,42.9322]
[1743681432951,1.11454,1794.8,1794.7,1.11454]
[1743681433151,1.11454,1794.8,1794.7,3.38614]
[1743681433854,1.11454,1794.8,1794.7,44.18614]
[1743681434748,4.32231,1794.9,1794.8,1.11453]
[1743681434955,1.11439,1795.1,1795.0,1.11437]
[1743681435458,1.11443,1795.0,1794.9,2.54561]
[1743681435948,1.11438,1795.1,1795.0,1.11436]
[1743681436149,1.11438,1795.1,1795.0,3.26696]
[1743681437354,2.60898,1795.1,1795.0,2.1526]
[1743681438546,2.60898,1795.1,1795.0,3.267]
[1743681440351,2.60898,1795.1,1795.0,2.1526]
[1743681441248,2.60898,1795.1,1794.7,47.54333]
[1743681441249,1.11453,1794.8,1794.7,0.7492]
[1743681441443,1.11453,1794.8,1794.4,3.2078]
[1743681441444,1.11459,1794.7,1794.6,2.2717]
[1743681441650,2.50669,1794.7,1794.6,2.2717]
[1743681442948,2.50669,1794.7,1794.6,0.7697]
[1743681443143,1.11459,1794.7,1794.6,1.88435]
[1743681443958,1.11459,1794.7,1794.6,0.7697]
[1743681444150,1.11459,1794.7,1794.6,1.88435]
[1743681444346,1.11459,1794.7,1794.6,2.214]
[1743681446951,1.11459,1794.7,1794.6,3.32865]
[1743681447151,1.11459,1794.7,1794.6,2.214]
[1743681447451,1.11459,1794.7,1794.6,3.32865]
[1743681447653,1.11459,1794.7,1794.6,2.214]
[1743681448752,1.11459,1794.7,1794.6,3.32865]
[1743681450557,1.11459,1794.7,1794.6,2.214]
[1743681451056,1.4006,1794.8,1794.4,5.07106]
[1743681451260,1.11471,1794.5,1794.4,3.9563]
[1743681452052,2.55751,1794.5,1794.4,0.7485]
[1743681452249,1.11477,1794.4,1794.3,44.15011]
[1743681453758,2.55756,1794.5,1794.4,1.11477]
[1743681453955,2.55756,1794.5,1794.4,2.64707]
[1743681455656,1.4428,1794.5,1794.4,2.64707]
[1743681455858,2.78601,1795.0,1794.4,7.2401]
[1743681456160,2.5808,1794.9,1794.8,1.11447]
[1743681456950,1.11453,1794.8,1794.7,3.33654]
[1743681457260,2.54983,1794.8,1794.7,0.7428]
[1743681457559,1.11465,1794.6,1794.4,3.726]
[1743681457759,1.11471,1794.5,1794.4,2.222]
[1743681458062,1.11471,1794.5,1794.4,3.33673]
[1743681460063,2.55,1794.6,1794.5,1.11471]
[1743681460652,1.4353,1794.6,1794.5,1.11471]
[1743681460859,1.4353,1794.6,1794.5,2.51911]
[1743681461555,1.81744,1794.7,1794.6,1.11465]
[1743681461763,1.81744,1794.7,1794.6,3.23875]
[1743681461966,3.29744,1794.7,1794.6,3.23875]
[1743681462758,3.29744,1794.7,1794.6,2.51905]
[1743681462960,1.11471,1794.5,1794.4,1.4846]
[1743681463360,1.11471,1794.5,1794.4,0.7428]
[1743681463558,1.11477,1794.4,1794.3,45.12259]
[1743681463865,1.4765,1794.4,1794.3,45.12259]
[1743681464052,1.4765,1794.4,1794.3,46.59579]
[1743681466365,2.59127,1794.4,1794.3,46.59579]
[1743681466564,2.59127,1794.4,1794.3,44.0078]
[1743681466765,3.34257,1794.4,1794.3,44.0078]
[1743681467067,3.34257,1794.4,1794.3,45.12264]
[1743681471663,3.34257,1794.4,1794.3,44.0078]
[1743681472566,3.34257,1794.4,1794.3,45.12264]
[1743681472869,3.34257,1794.4,1794.3,44.0078]
[1743681473669,3.34257,1794.4,1794.3,45.12264]
[1743681474365,2.2278,1794.4,1794.2,0.00833958]
[1743681474565,5.72324,1794.3,1794.2,0.00833958]
[1743681474967,8.22324,1794.3,1794.2,0.00833958]
[1743681479767,8.22324,1794.3,1794.2,9.58e-06]
[1743681480568,5.72324,1794.3,1794.2,9.58e-06]
[1743681480764,9.44924,1794.3,1794.2,9.58e-06]
[1743681482381,5.72324,1794.3,1794.2,9.58e-06]
[1743681482668,2.51544,1794.3,1794.2,9.58e-06]
[1743681483570,1.11484,1794.3,1794.2,9.58e-06]
[1743681483771,1.11484,1794.3,1794.2,1.43660958]
[1743681484172,2.62834,1794.3,1794.2,1.43660958]
[1743681484373,2.62834,1794.3,1794.2,9.58e-06]
[1743681485177,1.11484,1794.3,1794.2,9.58e-06]
[1743681485378,1.11484,1794.3,1794.2,2.20240958]
[1743681485778,2.62834,1794.3,1794.2,2.20240958]
[1743681487187,2.62834,1794.3,1794.2,9.58e-06]
[1743681487896,5.83614,1794.3,1794.2,9.58e-06]
[1743681489084,12.06214,1794.3,1794.2,9.58e-06]
[1743681489988,9.56214,1794.3,1794.2,9.58e-06]
[1743681490183,6.35434,1794.3,1794.2,9.58e-06]
[1743681491891,6.35434,1794.3,1794.2,2.20660958]
[1743681492287,6.35434,1794.3,1794.2,0.73740958]
[1743681493104,6.35434,1794.3,1794.2,9.58e-06]
[1743681494590,2.62834,1794.3,1794.2,9.58e-06]
[1743681494789,2.62834,1794.3,1794.2,0.74590958]
[1743681494991,2.62834,1794.3,1794.2,9.58e-06]
[1743681495590,5.83614,1794.3,1794.2,9.58e-06]
[1743681497997,2.62834,1794.3,1794.2,9.58e-06]
[1743681498193,1.11484,1794.3,1794.2,9.58e-06]
[1743681498697,1.11484,1794.3,1794.2,1.51270958]
[1743681499591,2.54004,1794.3,1794.2,1.51270958]
[1743681501595,2.54004,1794.3,1794.2,9.58e-06]
[1743681503297,5.74784,1794.3,1794.2,9.58e-06]
[1743681503695,9.47284,1794.3,1794.2,9.58e-06]
[1743681504201,6.26504,1794.3,1794.2,9.58e-06]
[1743681505094,9.47284,1794.3,1794.2,9.58e-06]
[1743681508207,6.26504,1794.3,1794.2,9.58e-06]
[1743681509304,2.54004,1794.3,1794.2,9.58e-06]
[1743681510211,5.74784,1794.3,1794.2,9.58e-06]
[1743681513409,2.54004,1794.3,1794.2,9.58e-06]
[1743681513902,2.54004,1794.3,1794.2,2.18800958]
[1743681515601,1.11484,1794.3,1794.2,2.18800958]
[1743681516004,1.11484,1794.3,1794.2,3.30290958]
[1743681516308,1.11484,1794.3,1794.2,5.80290958]
[1743681516709,1.11484,1794.3,1794.2,9.58e-06]
[1743681517301,5.73744,1794.3,1794.2,9.58e-06]
[1743681517498,6.44524,1794.3,1794.2,9.58e-06]
[1743681518502,1.11484,1794.3,1794.2,9.58e-06]
[1743681518909,1.11484,1794.3,1794.2,2.26540958]
[1743681519706,1.11484,1794.3,1794.2,3.38030958]
[1743681520703,1.11484,1794.3,1794.2,2.26540958]
[1743681521510,1.11484,1794.3,1794.2,3.38030958]
[1743681522011,1.11484,1794.3,1794.2,2.26540958]
[1743681522311,1.11484,1794.3,1794.2,9.58e-06]
[1743681522706,1.82074,1794.3,1794.2,9.58e-06]
[1743681525110,5.54474,1794.3,1794.2,1.11490958]
[1743681525514,5.54474,1794.3,1794.2,9.58e-06]
[1743681526017,5.54474,1794.3,1794.2,1.11490958]
[1743681526217,5.54474,1794.3,1794.2,9.58e-06]
[1743681528312,8.75254,1794.3,1794.2,9.58e-06]
[1743681529206,10.16594,1794.3,1794.2,9.58e-06]
[1743681529709,12.66594,1794.3,1794.2,9.58e-06]
[1743681532409,10.16594,1794.3,1794.2,9.58e-06]
[1743681533210,6.25224,1794.3,1794.2,1.11490958]
[1743681533415,6.25224,1794.3,1794.2,2.65530958]
[1743681533915,6.25224,1794.3,1794.2,1.54040958]
[1743681535116,2.52824,1794.3,1794.2,1.54040958]
[1743681535617,2.52824,1794.3,1794.2,9.58e-06]
[1743681535815,5.73604,1794.3,1794.2,9.58e-06]
[1743681536231,9.46004,1794.3,1794.2,9.58e-06]
[1743681536913,5.73604,1794.3,1794.2,9.58e-06]
[1743681537314,5.73604,1794.3,1794.2,1.53790958]
[1743681537820,1.1148,1794.4,1794.2,4.03790958]
[1743681538127,1.1148,1794.4,1794.3,3.36874]
[1743681538917,1.1148,1794.4,1794.3,2.2539]
[1743681542817,1.11472,1794.5,1794.3,2.2539]
[1743681543021,5.4389,1794.8,1794.6,1.11461]
[1743681543321,1.11453,1794.8,1794.7,3.34039]
[1743681544209,4.29594,1795.0,1794.5,3.2078]
[1743681544210,3.2078,1794.9,1794.5,3.2078]
[1743681544412,1.11465,1794.6,1794.5,3.3153]
[1743681544642,1.11464,1794.7,1794.6,1.11463]
[1743681545021,2.2707,1794.8,1794.5,0.6979]
[1743681545022,1.11465,1794.6,1794.5,0.6979]
[1743681545520,2.54363,1794.7,1794.6,1.11465]
[1743681546525,1.11465,1794.6,1794.5,1.81256]
[1743681548022,2.54365,1794.7,1794.6,1.11465]
[1743681548723,1.11465,1794.7,1794.6,1.11465]
[1743681548920,3.2078,1795.2,1794.8,2.78623]
[1743681549223,1.11434,1795.1,1795.0,1.11435]
[1743681549616,1.11434,1795.1,1795.0,40.8]
[1743681549839,2.50844,1795.1,1795.0,40.8]
[1743681550017,2.50844,1795.1,1795.0,41.9144]
[1743681550224,2.50844,1795.1,1795.0,40.8]
[1743681551018,2.50844,1795.1,1795.0,41.9144]
[1743681553717,1.1143,1795.2,1795.1,1.11434]
[1743681555133,0.00833958,1795.3,1795.2,1.11428]
[1743681555825,0.00833958,1795.3,1795.2,1.82498]
[1743681556026,0.00833958,1795.3,1795.2,4.32498]
[1743681556829,1.12255958,1795.3,1795.2,0.7107]
[1743681557030,2.62905958,1795.3,1795.2,1.82498]
[1743681557219,2.62905958,1795.3,1795.2,0.7107]
[1743681557626,2.62905958,1795.3,1795.2,2.175]
[1743681558220,1.11428,1795.2,1795.1,3.2078]
[1743681558425,2.62078,1795.2,1795.1,3.2078]
[1743681558733,1.11428,1795.2,1795.1,4.32214]
[1743681559034,1.11428,1795.2,1795.1,5.78644]
[1743681559531,1.12259958,1795.3,1795.2,1.11428]
[1743681559731,1.12259958,1795.3,1795.2,2.57858]
[1743681560332,0.00833958,1795.3,1795.2,2.57858]
[1743681560628,1.11391,1795.8,1795.4,2.78525]
[1743681560832,1.11391,1795.8,1795.6,1.11398]
[1743681561229,2.54611,1795.8,1795.6,2.50428]
[1743681561727,1.4322,1795.7,1795.6,2.50428]
[1743681562734,2.54617,1795.7,1795.6,1.3903]
[1743681563132,2.54617,1795.7,1795.6,2.50433]
[1743681563430,1.4322,1795.7,1795.6,2.50433]
[1743681564534,2.54617,1795.7,1795.6,2.50433]
[1743681564736,1.11403,1795.6,1795.5,5.05738958]
[1743681565031,3.37703,1795.6,1795.5,5.05738958]
[1743681565232,1.498,1795.6,1795.5,5.05738958]
[1743681566932,0.765,1795.8,1795.5,5.05738958]
[1743681566933,1.87896,1795.8,1795.7,1.11397]
[1743681567132,3.36206,1795.8,1795.7,1.11397]
[1743681569531,1.11397,1795.7,1795.6,1.11399]
[1743681569737,2.65257,1795.7,1795.6,1.11399]
[1743681571145,1.5386,1795.7,1795.6,1.11399]
[1743681571435,0.00833958,1795.9,1795.8,1.11391]
[1743681571840,0.00833958,1795.9,1795.8,3.28541]
[1743681572437,6.50271,1796.5,1796.2,1.11365]
[1743681572656,4.32145,1796.3,1796.2,1.11365]
[1743681573141,0.7437,1796.4,1796.2,1.11365]
[1743681573343,1.1136,1796.3,1796.2,1.11365]
[1743681573742,2.5108,1796.3,1796.2,41.91365]
[1743681574635,1.3972,1796.3,1796.2,41.91365]
[1743681575735,2.5108,1796.3,1796.2,41.91365]
[1743681575938,1.3972,1796.3,1796.2,41.91365]
[1743681576138,2.5108,1796.3,1796.2,41.91365]
[1743681577944,2.5108,1796.3,1796.2,1.11365]
[1743681578539,1.11366,1796.2,1796.1,1.11367]
[1743681578745,2.64476,1796.2,1796.1,1.11367]
[1743681579346,1.11365,1796.3,1796.2,1.11366]
[1743681579747,1.11366,1796.2,1796.1,2.65518]
[1743681580343,1.11366,1796.2,1796.1,1.5415]
[1743681582347,1.11366,1796.2,1795.9,47.7268]
[1743681582348,1.11378,1796.0,1795.9,40.8]
[1743681582946,2.51958,1796.0,1795.9,40.8]
[1743681586447,1.11403,1795.6,1795.5,0.00833958]
[1743681586844,1.11403,1795.6,1795.5,40.80833958]
[1743681587350,2.56043,1795.6,1795.5,40.80833958]
[1743681587541,2.56043,1795.6,1795.5,41.92242958]
[1743681588743,2.56043,1795.6,1795.5,40.80833958]
[1743681588947,2.56043,1795.6,1795.5,41.92242958]
[1743681590755,2.56043,1795.6,1795.5,40.80833958]
[1743681594358,2.56043,1795.6,1795.5,42.19933958]
[1743681594652,1.11403,1795.6,1795.5,43.31342958]
[1743681594858,1.11402,1795.7,1795.6,1.11401]
[1743681595161,1.11402,1795.7,1795.6,3.22791]
[1743681595453,1.11402,1795.7,1795.6,2.1139]
[1743681595651,1.11402,1795.7,1795.6,3.22793]
[1743681597758,2.55022,1795.7,1795.6,1.391]
[1743681598155,2.55022,1795.7,1795.6,2.50503]
[1743681600257,1.11403,1795.6,1795.5,40.80833958]
[1743681600459,2.55823,1795.6,1795.5,40.80833958]
[1743681600758,2.55823,1795.6,1795.5,41.92242958]
[1743681601351,2.55823,1795.6,1795.5,42.69172958]
[1743681601551,1.11403,1795.6,1795.5,42.69172958]
[1743681602060,2.55821,1795.7,1795.6,1.11403]
[1743681602265,2.55821,1795.7,1795.6,2.1661]
[1743681602563,1.4442,1795.7,1795.6,3.28013]
[1743681602761,1.1138,1796.0,1795.7,2.78485]
[1743681603065,5.99199,1796.2,1796.0,1.11374]
[1743681603066,1.11374,1796.1,1796.0,1.11374]
[1743681603356,1.11372,1796.1,1796.0,1.11378]
[1743681603557,1.11378,1796.0,1795.7,4.32172]
[1743681603756,1.11391,1795.8,1795.7,1.455]
[1743681603955,1.11397,1795.7,1795.6,4.4128]
[1743681604151,1.11397,1795.7,1795.6,5.8678]
[1743681604467,1.11403,1795.6,1795.0,3.2078]
[1743681604764,1.11403,1795.6,1794.7,18.26094422]
[1743681604765,1.11446,1794.9,1794.7,18.26094422]
[1743681605059,4.83132,1795.2,1794.8,40.8]
[1743681605266,1.11426,1795.3,1795.1,1.11429]
[1743681605467,1.11428,1795.2,1795.1,1.11429]
[1743681606166,1.11434,1795.1,1795.0,3.22530958]
[1743681606459,1.11434,1795.1,1795.0,0.71793958]
[1743681606861,1.11434,1795.1,1795.0,0.00833958]
[1743681608167,2.63634,1795.1,1795.0,0.00833958]
[1743681608361,9.56214,1795.1,1795.0,0.00833958]
[1743681608867,1.11446,1794.9,1794.8,40.8]
[1743681609162,2.56625,1795.0,1794.8,40.8]
[1743681609370,1.4518,1795.0,1794.9,1.11446]
[1743681610865,1.11446,1794.9,1794.8,44.01337893]
[1743681611065,1.4518,1795.0,1794.9,1.11446]
[1743681611266,3.2078,1795.2,1795.1,1.11434]
[1743681611673,4.32208,1795.2,1795.0,0.7483]
[1743681611969,1.11434,1795.1,1795.0,1.86265]
[1743681612168,1.1144,1795.0,1794.8,41.92004893]
[1743681612374,1.513,1794.9,1794.8,41.92004893]
[1743681612565,6.75983,1795.2,1795.0,1.1144]
[1743681612566,1.11439,1795.1,1795.0,1.1144]
[1743681612765,4.7208,1795.2,1795.1,1.11434]
[1743681612962,3.2078,1795.2,1795.1,1.11434]
[1743681613473,2.62726,1795.3,1794.9,5.99397]
[1743681613666,1.11429,1795.2,1795.1,1.11431]
[1743681613865,2.62729,1795.2,1795.1,1.11431]
[1743681614468,2.62729,1795.2,1795.0,1.11436]
[1743681614676,1.513,1795.2,1794.8,40.80557893]
[1743681614971,2.60656,1795.1,1795.0,1.11438]
[1743681615177,1.11446,1794.9,1794.8,40.80557893]
[1743681615765,9.53246,1794.9,1794.8,0.00557893]
[1743681616276,9.53246,1794.9,1794.8,40.80557893]
[1743681616772,12.03246,1794.9,1794.8,40.80557893]
[1743681616975,12.03246,1794.9,1794.8,8.93e-06]
[1743681618569,9.53246,1794.9,1794.8,8.93e-06]
[1743681618764,12.03246,1794.9,1794.8,8.93e-06]
[1743681620074,12.12986239,1794.9,1794.8,8.93e-06]
[1743681620572,1.11515,1793.8,1793.7,3.943]
[1743681620967,1.11527,1793.6,1793.5,1.5067]
[1743681621174,1.11533,1793.5,1793.4,0.7696]
[1743681621374,1.11552,1793.2,1793.1,8.78112674]
[1743681621678,8.3913,1793.5,1793.1,40.8]
[1743681621679,1.1238833,1793.3,1793.1,40.8]
[1743681621880,1.11552,1793.2,1793.1,40.8]
[1743681623070,2.5883733,1793.3,1793.1,40.8]
[1743681623271,0.0083633,1793.3,1793.2,5.81182]
[1743681623771,0.0083633,1793.3,1793.2,1.4885]
[1743681623969,1.1238233,1793.3,1793.2,42.2885]
[1743681624682,1.1238233,1793.3,1793.2,40.8]
[1743681626368,0.0083633,1793.3,1793.2,41.91552]
[1743681626572,0.0083633,1793.3,1793.2,47.62332]
[1743681627078,4.4842,1793.8,1793.5,1.11531]
[1743681627278,1.11529,1793.6,1793.5,1.11531]
[1743681627473,1.5156,1793.7,1793.6,1.11527]
[1743681627474,2.63083,1793.7,1793.6,1.11527]
[1743681627685,1.11523,1793.7,1793.6,1.11527]
[1743681627981,3.72,1793.8,1793.4,5.4778]
[1743681628173,3.72,1793.8,1793.5,0.0083633]
[1743681628174,7.5197033,1793.8,1793.5,0.0083633]
[1743681628379,1.11527,1793.6,1793.5,0.0083633]
[1743681628676,1.11523,1793.7,1793.5,0.0083633]
[1743681628876,1.11523,1793.7,1793.6,1.11526]
[1743681629076,1.11523,1793.7,1793.6,2.61526]
[1743681629784,0.0083633,1793.8,1793.7,1.11521]
[1743681630080,3.2078,1794.3,1793.7,2.58371]
[1743681630279,3.2078,1794.3,1793.8,3.2078]
[1743681630280,1.491,1794.2,1793.8,3.2078]
[1743681630480,2.78742,1794.1,1793.8,1.11514]
[1743681630780,1.11509,1793.9,1793.8,2.58364]
[1743681630976,1.11498,1794.1,1794.0,1.11499]
[1743681631177,2.78741,1794.1,1793.7,0.7508]
[1743681631483,1.11504,1794.0,1793.8,5.79142]
[1743681631792,2.60601,1794.1,1793.9,1.4685]
[1743681631971,0.0083633,1794.2,1794.0,1.11497]
[1743681632175,0.0083633,1794.2,1794.1,2.58346]
[1743681632379,1.1232633,1794.2,1794.1,1.4685]
[1743681632682,0.0083633,1794.2,1794.1,2.58346]
[1743681633178,1.11481,1794.4,1794.1,8.29121]
[1743681633380,2.78664,1794.6,1794.1,8.29121]
[1743681633381,1.4787,1794.6,1794.2,40.8]
[1743681633678,1.11479,1794.4,1794.2,43.44365]
[1743681633981,4.26533,1794.6,1794.2,43.44365]
[1743681634177,1.11484,1794.3,1794.2,42.3288]
[1743681635379,1.11484,1794.3,1794.2,43.4437]
[1743681635684,2.59352,1794.4,1794.2,45.5366]
[1743681635980,1.1148,1794.4,1794.3,1.11484]
[1743681636581,0.0083633,1794.5,1794.3,1.11484]
[1743681636888,0.0083633,1794.5,1794.4,2.51607]
[1743681637381,0.0083633,1794.5,1794.4,8.22387]
[1743681637586,1.11459,1794.7,1794.6,1.11459]
[1743681637787,11.19972,1795.0,1794.5,4.4948]
[1743681637788,1.11465,1794.6,1794.5,4.4948]
[1743681638084,1.11477,1794.4,1794.3,5.824]
[1743681639178,2.51387,1794.4,1794.3,5.824]
[1743681640787,2.51387,1794.4,1794.2,0.0083633]
[1743681640788,1.11484,1794.3,1794.2,0.0083633]
[1743681640983,2.51394,1794.3,1794.2,0.0083633]
[1743681643182,3.2078,1794.4,1794.2,0.0083633]
[1743681643388,0.0083633,1794.5,1794.4,1.11477]
[1743681643593,0.0083633,1794.5,1794.4,3.61477]
[1743681643786,2.63011,1794.9,1794.7,1.11454]
[1743681644089,2.63011,1794.9,1794.8,42.2]
[1743681644291,2.63011,1794.9,1794.8,43.31453]
[1743681644690,1.11438,1795.1,1795.0,1.1144]
[1743681645293,0.0083633,1795.2,1795.1,1.11434]
[1743681645490,0.0083633,1795.2,1795.1,4.32214]
[1743681645694,1.11409,1795.5,1795.4,1.11412]
[1743681645989,1.11409,1795.5,1795.4,41.91412]
[1743681646195,1.11409,1795.5,1795.4,40.8]
[1743681647589,2.5779665,1795.6,1795.4,41.91415]
[1743681647801,2.5779665,1795.6,1795.4,43.45175]
[1743681648001,1.11409,1795.5,1795.4,43.45175]
[1743681648693,2.5779765,1795.6,1795.4,43.45175]
[1743681649095,1.11409,1795.5,1795.4,42.3376]
[1743681649293,1.11409,1795.5,1795.4,43.45175]
[1743681649495,1.11409,1795.5,1795.4,42.3376]
[1743681649699,2.5779665,1795.6,1795.4,43.45172]
[1743681650195,1.11409,1795.5,1795.4,43.45172]
[1743681650704,1.11409,1795.5,1795.4,2.65172]
[1743681651800,0.0054965,1795.6,1795.5,1.11409]
[1743681653304,1.11391,1795.8,1795.7,1.11391]
[1743681653507,1.11367,1796.2,1796.1,1.1137]
[1743681653806,1.4515,1796.2,1796.1,1.1137]
[1743681654300,1.11352,1796.5,1796.3,1.1136]
[1743681654494,1.11354,1796.4,1796.2,2.53995]
[1743681654803,1.11354,1796.4,1796.2,1.4263]
[1743681655306,1.11354,1796.4,1796.2,2.53995]
[1743681655803,1.1136,1796.3,1796.2,1.4263]
[1743681656405,1.11358,1796.4,1796.2,2.53996]
[1743681656604,1.1136,1796.3,1796.2,2.53996]
[1743681656898,1.1136,1796.3,1796.2,1.4263]
[1743681657103,1.1136,1796.3,1796.2,2.53996]
[1743681657299,2.54362,1796.5,1796.3,1.11358]
[1743681657499,2.54362,1796.5,1796.4,1.422]
[1743681658406,1.1136,1796.3,1796.2,2.53561]
[1743681658598,1.1136,1796.3,1796.2,1.422]
[1743681658818,4.21379,1796.5,1796.1,3.2161633]
[1743681658819,1.11366,1796.2,1796.1,3.2161633]
[1743681659000,2.60176,1796.2,1796.1,3.2161633]
[1743681659304,2.60176,1796.2,1796.1,4.3298833]
[1743681659601,1.11364,1796.3,1796.1,4.3298833]
[1743681659807,1.11364,1796.3,1796.2,1.422]
[1743681663005,1.11366,1796.2,1796.1,0.0083633]
[1743681663397,4.32146,1796.2,1796.1,0.0083633]
[1743681663804,10.54646,1796.2,1796.1,3.3e-06]
[1743681664105,4.32146,1796.2,1796.1,3.3e-06]
[1743681664315,5.85176,1796.2,1796.1,3.3e-06]
[1743681665100,2.64396,1796.2,1796.1,3.3e-06]
[1743681665310,2.64396,1796.2,1796.1,1.1137233]
[1743681665512,2.64396,1796.2,1796.1,3.3e-06]
[1743681665806,2.64396,1796.2,1796.1,1.1137233]
[1743681666021,1.12198999,1796.3,1796.2,1.11366]
[1743681666208,0.00835999,1796.3,1796.2,2.53216]
[1743681666799,1.12195999,1796.3,1796.2,40.8]
[1743681666997,2.65045999,1796.3,1796.2,40.8]
[1743681668510,5.85825999,1796.3,1796.2,40.8]
[1743681668719,1.11366,1796.2,1796.1,3.3e-06]
[1743681668910,3.36546,1796.2,1796.1,3.3e-06]
[1743681669130,3.36546,1796.2,1796.1,40.8000033]
[1743681671410,3.36546,1796.2,1796.1,3.3e-06]
[1743681671806,5.86546,1796.2,1796.1,3.3e-06]
[1743681672112,3.36546,1796.2,1796.1,3.3e-06]
[1743681672515,3.36546,1796.2,1796.1,1.1137233]
[1743681672718,2.64216,1796.2,1796.1,1.1137233]
[1743681672922,1.5285,1796.2,1796.1,1.1137233]
[1743681673417,2.64216,1796.2,1796.1,3.3e-06]
[1743681673715,5.84996,1796.2,1796.1,3.3e-06]
[1743681675118,2.64216,1796.2,1796.1,3.3e-06]
[1743681675319,2.64216,1796.2,1796.1,1.4466033]
[1743681676018,1.11366,1796.2,1796.1,2.5603233]
[1743681676314,1.11366,1796.2,1796.1,5.0603233]
[1743681677811,1.11366,1796.2,1796.1,1.4466033]
[1743681679007,1.11366,1796.2,1796.1,3.3e-06]
[1743681679613,1.11366,1796.2,1796.1,1.1137233]
[1743681680116,2.63839999,1796.3,1796.2,1.11366]
[1743681680308,2.63839999,1796.3,1796.2,2.51676]
[1743681683614,1.11366,1796.2,1796.1,3.3e-06]
[1743681683817,5.86106,1796.2,1796.1,3.3e-06]
[1743681685011,1.5396,1796.2,1796.1,1.1137233]
[1743681685621,2.65326,1796.2,1796.1,1.1137233]
[1743681685819,1.5396,1796.2,1796.1,1.1137233]
[1743681686814,1.5396,1796.2,1796.1,2.6529233]
[1743681687015,2.65326,1796.2,1796.1,3.3e-06]
[1743681687213,6.59736,1796.2,1796.1,3.3e-06]
[1743681687425,3.38956,1796.2,1796.1,3.3e-06]
[1743681688020,3.38956,1796.2,1796.1,1.1137233]
[1743681688418,3.38956,1796.2,1796.1,3.3e-06]
[1743681689417,6.59736,1796.2,1796.1,3.3e-06]
[1743681691618,9.09736,1796.2,1796.1,3.3e-06]
[1743681693624,10.31736,1796.2,1796.1,3.3e-06]
[1743681694532,10.31736,1796.2,1796.1,1.1137233]
[1743681694724,6.59736,1796.2,1796.1,1.1137233]
[1743681695130,6.59736,1796.2,1796.1,3.3e-06]
[1743681695429,2.65326,1796.2,1796.1,1.1137233]
[1743681696524,1.12198999,1796.3,1796.2,1.11366]
[1743681696723,1.12198999,1796.3,1796.2,2.61356]
[1743681696922,0.00835999,1796.3,1796.2,2.61356]